Cogmind - Beta 13 X2 @@@ ROGUE MODE // 2024.01.20 @ 17:26:22 Player: IzRey Result: Destroyed by DAS Turret with DAS Cannon Performance ------------- Evolutions (1) 500 Regions Visited (4) 800 Robots Destroyed (23) 115 Value Destroyed (439) 439 Prototype IDs (6) 120 Alien Tech Used (0) 0 Bonus (-28) -28 TOTAL SCORE: 1946 Bonus ------- Friendly Fire -28 Cogmind --------- Core Integrity 0/400 Matter 298/300 Energy 98/100 System Corruption 0% Temperature Cool (0) Movement Core (50) Location -9/Exiles Parts ------- > --- POWER (1) -------- (None) > --- PROPULSION (2) --- (None) > --- UTILITY (3) ------ (None) > --- WEAPON (3) ------- (None) > --- INVENTORY (5) ---- Ion Engine Heat Sink High-capacity Storage Unit Armor Integrity Analyzer Power Maul Peak State ------------ > --- POWER ------------ Improved Ion Engine > --- PROPULSION ------- Aluminum Leg Aluminum Leg > --- UTILITY ---------- Cooling System Small Storage Unit Improved Targeting Computer > --- WEAPON ----------- Medium Laser Particle Gun Power Maul > --- INVENTORY -------- Ion Engine Aluminum Leg Heat Sink Heat Sink Signal Interpreter Armor Integrity Analyzer Particle Gun Mini Grenade Launcher [Rating: 17] Favorites ----------- Power Improved Ion Engine Engine Improved Ion Engine Propulsion Aluminum Leg Leg Aluminum Leg Utility Small Storage Unit Device Cooling System Storage Small Storage Unit Processor Improved Targeting Computer Weapon Medium Laser Energy Gun Medium Laser Ballistic Gun Assault Rifle Launcher Mini Grenade Launcher Impact Weapon Power Maul Build | -11 -10 -9 -9 -9 ------- Run | Yrd Mat Mat Min Exi Slots Evolved 2 | . . 2 . . Power . | . . . . . Propulsion . | . . . . . Utility 1 | . . 1 . . Weapon 1 | . . 1 . . Parts Attached 24 | 3 8 11 1 1 Power 3 | . 1 2 . . Engine 3 | . 1 2 . . Core . | . . . . . Reactor . | . . . . . Propulsion 4 | . 1 3 . . Treads . | . . . . . Leg 4 | . 1 3 . . Wheel . | . . . . . Hover . | . . . . . Flight . | . . . . . Utility 8 | 1 3 4 . . Device 6 | 1 2 3 . . Storage . | . . . . . Processor 2 | . 1 1 . . Hackware . | . . . . . Protection . | . . . . . Artifact . | . . . . . Weapon 9 | 2 3 2 1 1 Energy Gun 6 | 1 3 2 . . Energy Cannon . | . . . . . Ballistic Gun 1 | 1 . . . . Ballistic Cannon . | . . . . . Launcher 1 | . . . . 1 Special Weapon . | . . . . . Impact Weapon 1 | . . . 1 . Slashing Weapon . | . . . . . Piercing Weapon . | . . . . . Special Melee Weapon . | . . . . . Unidentified Prototypes . | . . . . . Parts Lost 8 | . 2 3 . 3 Power 2 | . 1 1 . . Propulsion 3 | . . 1 . 2 Utility . | . . . . . Weapon 3 | . 1 1 . 1 Highest Loss Streak 3 | . 1 2 . 3 To Critical Strikes . | . . . . . Average Slot Usage (%) 99 | . 100 98 100 98 Engine 12 | . 14 11 11 11 Leg 23 | . 28 22 22 21 Device 12 | . 13 13 11 11 Storage 12 | . 14 11 11 11 Processor 6 | . . 7 11 11 Energy Gun 29 | . 28 31 32 22 Impact Weapon 1 | . . . . 10 Naked Turns 5 | . . . . 5 Heaviest Build 22 | 12 15 21 22 22 Greatest Support 20 | 20 20 20 20 20 Greatest Overweight (x) 6 | . . 1 1 6 Average Overweight (x) . | . . . 1 . Largest Inventory Capacity 8 | 8 8 8 8 8 Average Capacity 7 | 8 8 8 8 7 Most Carried 8 | 7 8 8 8 8 Average Carried 7 | 6 7 7 7 7 Final Capacity 8 | 8 8 8 8 5 Final Carried 8 | 6 7 8 8 5 Class Distribution -------------------- 45% | Mutant 45% | Gunner 5% | Skirmisher Dominant Class ---------------- Mutant | -10/Materials Gunner | -9/Materials Gunner | -9/Mines Mutant | -9/Exiles Resources | -11 -10 -9 -9 -9 ----------- Run | Yrd Mat Mat Min Exi Matter Collected 413 | 230 75 95 . 13 Remotely . | . . . . . Salvage Created 837 | 149 454 234 . . Parts 40 | 9 20 11 . . Haulers Intercepted 2 | . 2 . . . Recyclers Shooed 2 | . 2 . . . Parts Field Recycled . | . . . . . Retrieved Matter . | . . . . . Parts Self-Destructed . | . . . . . Prevented . | . . . . . Kills | -11 -10 -9 -9 -9 ------- Run | Yrd Mat Mat Min Exi Combat Hostiles Destroyed 16 | . 11 5 . . Guns 16 | . 11 5 . . Classes Destroyed 8 | 2 4 2 . . Worker 2 | . 2 . . . Tunneler 2 | 2 . . . . Hauler 2 | . 2 . . . Recycler 1 | 1 . . . . Swarmer 6 | . 6 . . . Grunt 8 | . 5 3 . . Brawler 1 | . . 1 . . Sentry 1 | . . 1 . . Best Kill Streak 5 | 3 5 3 . . Combat Bots Only 5 | . 5 3 . . Max Kills in Single Turn 1 | 1 1 1 . . Gunslinging . | . . . . . Exploded . | . . . . . Melee . | . . . . . Uniques/NPCs Destroyed . | . . . . . Combat | -11 -10 -9 -9 -9 -------- Run | Yrd Mat Mat Min Exi Hostile Shots Fired 122 | . 67 22 . 33 Missed 26 | . 12 5 . 9 Damage Taken 1461 | . 567 218 . 676 Core 556 | . 120 14 . 422 Absorbed by Shields . | . . . . . Core Remaining (%) 76 | 100 52 . . . Volleys Fired 80 | 7 59 12 . 2 Largest 3 | 2 2 3 . 3 Hottest 165 | 90 100 165 . 145 Shots Fired 157 | 14 103 35 . 5 Gun 156 | 14 103 35 . 4 Cannon . | . . . . . Launcher 1 | . . . . 1 Special . | . . . . . Kinetic . | . . . . . Thermal 156 | 14 103 35 . 4 Explosive 1 | . . . . 1 Electromagnetic . | . . . . . Robot Hit Streak 13 | 4 8 13 . 2 Robot Miss Streak 3 | 2 3 2 . 3 Penetration Max . | . . . . . Secondary Targets 1 | . . 1 . . Max Gunslinging Chain 1 | . . 1 . . Shots Hit Robots 99 | 7 65 25 . 2 Core Hits 40 | 4 23 10 . 3 Critical Kills . | . . . . . Critical Parts Destroyed . | . . . . . Critical Strikes 7 | . 5 2 . . Burn 7 | . 5 2 . . Melee Attacks 2 | . . . 2 . Impact 2 | . . . 2 . Slashing . | . . . . . Piercing . | . . . . . Sneak Attacks . | . . . . . Combat Hostiles . | . . . . . Follow-up Attacks . | . . . . . Damage Inflicted 1305 | 95 784 331 . 95 Guns 1238 | 95 784 331 . 28 Cannons . | . . . . . Explosions 67 | . . . . 67 Melee . | . . . . . Ramming . | . . . . . Kinetic . | . . . . . Thermal 1238 | 95 784 331 . 28 Explosive 67 | . . . . 67 Electromagnetic . | . . . . . Impact . | . . . . . Slashing . | . . . . . Piercing . | . . . . . Highest Corruption . | . . . . . Average Corruption . | . . . . . Corruption Purged . | . . . . . Corruption Blocked . | . . . . . Overload Shots . | . . . . . Overflow Damage . | . . . . . Projectiles . | . . . . . Explosions . | . . . . . Melee . | . . . . . Knockbacks . | . . . . . Impact . | . . . . . Kinetic . | . . . . . Secondary . | . . . . . Self-Inflicted Damage . | . . . . . Shots . | . . . . . Rammed . | . . . . . Targets Rammed . | . . . . . Kicked . | . . . . . Crushed . | . . . . . Highest Temperature 398 | 120 398 282 . 12 Average Temperature 109 | 47 121 102 . 8 Received Heat Transfer 464 | . 246 138 . 80 Effects 5 | . 5 . . . Shutdowns 1 | . 1 . . . Interference 3 | . 3 . . . Damage (minor) 1 | . 1 . . . Siege Activations . | . . . . . Robots Corrupted . | . . . . . Combat Hostiles . | . . . . . Parts Fried . | . . . . . Impact Corruptions . | . . . . . Robots Melted . | . . . . . Combat Hostiles . | . . . . . Parts Melted 11 | . 10 1 . . Heat Transferred 3942 | 248 2547 1073 . 74 Parts Sabotaged . | . . . . . Parts Stolen . | . . . . . Parts Stripped . | . . . . . Power Chain Reactions . | . . . . . Missiles Intercepted . | . . . . . Alert | -11 -10 -9 -9 -9 ------- Run | Yrd Mat Mat Min Exi Peak Influence 336 | 15 336 258 22 . Initial 141 | . 9 141 22 . Average 100 | 7 116 152 18 . Maximum Alert Level 1 | . 1 1 . . Low Security (%) 79 | 100 83 58 100 . Level 1 20 | . 16 41 . . Level 2 . | . . . . . Level 3 . | . . . . . Level 4 . | . . . . . Level 5 . | . . . . . High Security . | . . . . . Max Security . | . . . . . Squads Dispatched 6 | . 3 2 1 . Investigation 3 | . 2 . 1 . Extermination . | . . . . . Reinforcement 3 | . 1 2 . . Assault . | . . . . . Garrison . | . . . . . Intercept . | . . . . . Searches Triggered . | . . . . . Construction Impeded . | . . . . . Haulers Reinforced . | . . . . . Active Scanning Responses . | . . . . . Cargo Convoy Interrupts . | . . . . . Stealth | -11 -10 -9 -9 -9 --------- Run | Yrd Mat Mat Min Exi Distress Signals 6 | . 1 5 . . Communications Jammed . | . . . . . Distress Signals . | . . . . . Times Spotted 34 | . 18 7 . 9 Peak Tracking Total 11 | . 7 3 . 11 Tactical Retreats 4 | . 2 . . 2 Traps | -11 -10 -9 -9 -9 ------- Run | Yrd Mat Mat Min Exi Traps Triggered . | . . . . . Indirectly . | . . . . . Trap Hack Attempts . | . . . . . Triggered . | . . . . . Disarmed . | . . . . . Reprogrammed . | . . . . . Reused . | . . . . . Traps Extracted . | . . . . . Installed . | . . . . . Triggered . | . . . . . Machines | -11 -10 -9 -9 -9 ---------- Run | Yrd Mat Mat Min Exi Machines Disabled 3 | . . . . 3 Max in Single Turn 3 | . . . . 3 Machines Repaired . | . . . . . Machines Dismantled . | . . . . . Machines Sabotaged . | . . . . . Overloaded Fab Kills . | . . . . . Hacking | -11 -10 -9 -9 -9 --------- Run | Yrd Mat Mat Min Exi Machines Accessed 10 | . 7 2 1 . Terminals 6 | . 5 1 . . Fabricators . | . . . . . Repair Stations . | . . . . . Recycling Units 3 | . 2 1 . . Scanalyzers . | . . . . . Garrison Access . | . . . . . Total Hacks 30 | . 21 8 1 . Successful 15 | . 10 4 1 . Failed 13 | . 10 3 . . Catastrophic . | . . . . . Database Lockouts 2 | . 1 1 . . Manual 13 | . 8 5 . . Terminals 26 | . 19 7 . . Fabricators . | . . . . . Repair Stations . | . . . . . Recycling Units 3 | . 2 1 . . Scanalyzers . | . . . . . Garrison Access . | . . . . . Terminal Hacks 11 | . 7 3 1 . Robot Analysis 2 | . 1 1 . . Prototype ID Bank 3 | . 2 1 . . Open Door 1 | . . . 1 . Branch Access Points 1 | . . 1 . . Locate Traps 1 | . 1 . . . Hauler Manifests 1 | . 1 . . . Registered Components 1 | . 1 . . . Zone Layout 1 | . 1 . . . Fabricator Hacks . | . . . . . Repair Station Hacks . | . . . . . Recycling Unit Hacks 1 | . . 1 . . Retrieve Components 1 | . . 1 . . Scanalyzer . | . . . . . Garrison Access Hacks . | . . . . . Unauthorized Hacks 3 | . 3 . . . Terminals 1 | . 1 . . . Botnet 1 | . 1 . . . Fabricators . | . . . . . Repair Stations . | . . . . . Recycling Units 2 | . 2 . . . Tunnel 2 | . 2 . . . Scanalyzers . | . . . . . Garrison Access . | . . . . . Data Cores Recovered . | . . . . . Used . | . . . . . Hacking Detections 6 | . 5 1 . . Full Trace Events 1 | . 1 . . . Feedback Events . | . . . . . Feedback Blocked . | . . . . . Robot Schematics Acquired . | . . . . . Robots Built . | . . . . . Authchips . | . . . . . Time . | . . . . . Total Robot Build Rating . | . . . . . Part Schematics Acquired . | . . . . . Parts Built . | . . . . . Authchips . | . . . . . Time . | . . . . . Total Part Build Rating . | . . . . . Parts Repaired . | . . . . . Time . | . . . . . Parts Recycled . | . . . . . Recycled Matter . | . . . . . Retrieved Matter . | . . . . . Retrieved Components 1 | . . 1 . . Parts Scanalyzed . | . . . . . Part Schematics Acquired . | . . . . . Parts Damaged . | . . . . . Bothacking | -11 -10 -9 -9 -9 ------------ Run | Yrd Mat Mat Min Exi Used RIF Installer . | . . . . . Robots Hacked . | . . . . . Non-combat . | . . . . . Combat . | . . . . . Robot Hacks Applied . | . . . . . Relay Couplers Released . | . . . . . Fabnet Peak Effective % . | . . . . . Robots Rewired . | . . . . . Allies Hacked . | . . . . . Hacks Repelled . | . . . . . Allies | -11 -10 -9 -9 -9 -------- Run | Yrd Mat Mat Min Exi Total Allies . | . . . . . Largest Group . | . . . . . Highest-Rated Group . | . . . . . Highest-Rated Ally . | . . . . . Total Orders . | . . . . . Ally Attacks . | . . . . . Total Damage . | . . . . . Kills . | . . . . . Allies Corrupted . | . . . . . Allies Melted . | . . . . . Intel | -11 -10 -9 -9 -9 ------- Run | Yrd Mat Mat Min Exi Robot Analysis Total 2 | . 1 1 . . Derelict Logs Recovered 1 | . . . 1 . Drone Launches . | . . . . . Drone Recoveries . | . . . . . Exploration | -11 -10 -9 -9 -9 ------------- Run | Yrd Mat Mat Min Exi Turns Passed 2108 | 66 677 670 485 210 Spaces Moved 1160 | 34 396 367 250 113 Core 12 | . . . . 12 Treads . | . . . . . Legs 1148 | 34 396 367 250 101 Wheels . | . . . . . Hover . | . . . . . Flight . | . . . . . Fastest Speed 50 | 120 120 120 190 50 Average Speed 153 | 120 120 161 190 177 Slowest Speed 350 | 120 120 190 190 350 Overloaded Moves . | . . . . . Propulsion Burnouts . | . . . . . Robots Hopped . | . . . . . Cave-ins Triggered . | . . . . . Exploration Rate (%) 38 | 4 70 31 52 35 Regions Visited 4 Branch Regions 2 Pre-discovered Areas 2 | . 2 . . . Known Exits Taken 2 | . 1 1 . . Unknown Exits Taken 2 | 1 . . 1 . Scrap Searched 2 | . . . 2 . Spaces Dug 1 | . . . 1 . Terrain Destroyed 8 | . . . 1 7 Melee 1 | . . . 1 . Projectile . | . . . . . AOE 7 | . . . . 7 Terrain Rammed . | . . . . . Walls Destroyed . | . . . . . Machines Disabled . | . . . . . Actions | -11 -10 -9 -9 -9 --------- Run | Yrd Mat Mat Min Exi Total 1336 | 45 498 418 257 118 Wait 39 | . 20 19 . . Move 1156 | 33 395 366 249 113 Hop . | . . . . . Pick Up 15 | . 7 5 2 1 Fast Attach 6 | 1 2 2 1 . Attach 9 | 2 3 4 . . Detach 4 | 2 2 . . . Swap 9 | . 3 5 . 1 Drop 16 | . 7 5 3 1 Fire 80 | 7 59 12 . 2 Melee 2 | . . . 2 . Ram . | . . . . . Kick . | . . . . . Crush . | . . . . . Escape Stasis . | . . . . . Rewire . | . . . . . Trap . | . . . . . Miscellaneous . | . . . . . Route ------- -11/Scrapyard -10/Materials (discovered 5 exits: *Mat x3 / [*Min x2]) -9/Materials (discovered 2 exits: *Min / Sto) -9/Mines -9/Exiles History --------- Turn | Location | Event 4 | -11/Scrapyard | Discovered new exit (range 3) 67 | -11/Scrapyard | Entered Materials 216 | -10/Materials | Discovered new exit (range 9) 301 | -10/Materials | Discovered new exit (range 5) 305 | -10/Materials | Build established: Mutant 328 | -10/Materials | Identified exit to Materials 351 | -10/Materials | Discovered new exit (range 16) 494 | -10/Materials | Discovered exit to Materials (range 12) 715 | -10/Materials | Discovered exit to Materials (range 10) 741 | -10/Materials | Central database locked down 744 | -10/Materials | Entered another Materials area 744 | -9/Materials | Evolved 2 slots: Utility x1, Weapon x1 825 | -9/Materials | Identified exit to Mines 825 | -9/Materials | Identified exit to Storage 825 | -9/Materials | Central database locked down 1079 | -9/Materials | Met 8R-AWN 1230 | -9/Materials | Build established: Gunner 1414 | -9/Materials | Entered Mines 1416 | -9/Mines | Followed 8R-AWN into the Mines 1615 | -9/Mines | Learned 2 Materials zone layouts 1760 | -9/Mines | Discovered new exit (range 5) 1829 | -9/Mines | Met a Derelict shopkeep closing up shop 1899 | -9/Mines | Entered Exiles 1951 | -9/Exiles | Welcomed by 8R-AWN 1974 | -9/Exiles | Met EX-HEX 2088 | -9/Exiles | Attacked by the Exiles 2102 | -9/Exiles | Core integrity fell below 50% 2104 | -9/Exiles | Released all parts (6) 2108 | -9/Exiles | Core integrity fell below 20% 2109 | -9/Exiles | Destroyed by DAS Turret with DAS Cannon Last Messages --------------- back. 02063_ Dropped Heat Sink. 02063_ Acquired Hcp. Storage Unit. 02088_ EXILES: Hostile robot within lab perimeter. Defensive protocols time, folks! 02094_ Machine disabled. 02094_ Mni. Grenade Launcher destroyed. 02096_ Aluminum Leg destroyed. 02099_ Acquired 7 matter. 02099_ as-85254 destroyed. 02100_ Aluminum Leg destroyed. 02101_ The unstable cave ceiling collapses. 02104_ Released Cooling System. 02104_ Released Imp. Ion Engine. 02104_ Released Med. Laser. 02104_ Released Sml. Storage Unit. 02104_ Released Imp. Targeting Computer. 02104_ Released Particle Gun. 02105_ EX-BIN: "I just want to science!" 02106_ Acquired 6 matter. Map ----- +----------------------------------------------------+ | ?????????????????????????????????????????????????? | | ?????????????????????????????????????????????????? | | ??????????????????????????????????????????????#""? | | ??????????????????????????????????????????? " " | | ????????????????????????????????????????? " | | ??????????????????????????????????????? | | ??????????????????????????????????????? | | ?????????????????????????????????????? | | ??????????????????????????????????????? | | ???????????????????? ???????????????? | | ?????????????????? ???????????????? | | ????????????????? ???????????????""" | | ???????????????? z"??????????????#""" | | ??????????????? """?????????????#"""" | | ?????????????? ""????????????##"" | | ?????????????? ########??####"""" | | ?????????????" ##aaa####""" | | ????????????? t " "" | | ?????????????? %%% | | ????????????"""" % a | | ????????????# a [[ | | ?????????????" c a " *!! | | ?????????????"""" c""##!=# " " | | ????????????#"" ""####[ ## # "" | | ????????????#" """"##??# #??### """" | | ?????????????""" @ %"""#??## ####???##### | | ?????????????# ""##??#! "!#???????? | | ?????????????#"" """##???#" !#???????? | | ??????????????#""" ##????#"! "#???????? | | ???????????????#"""" ##?????#! ""!"#???????? | | ???????????????### #??????########???????? | | ?????????????????##### ##?????????????????????? | | ?????????????????????## #??????????????????????? | | ??????????????????????# #??????????????????????? | | ??????????????????????# ???????????????????????? | | ??????????????????????# ???????????????????????? | | ??????????????????????# ???????????????????????? | | ??????????????????????# ???????????????????????? | | ??????????????????????# ???????????????????????? | | ??????????????????????# ???????????????????????? | | ??????????????????????? ???????????????????????? | | ?????????????????????????????????????????????????? | | ?????????????????????????????????????????????????? | | ?????????????????????????????????????????????????? | | ?????????????????????????????????????????????????? | | ?????????????????????????????????????????????????? | | ?????????????????????????????????????????????????? | | ?????????????????????????????????????????????????? | | ?????????????????????????????????????????????????? | | ?????????????????????????????????????????????????? | +----------------------------------------------------+ Best States ------------- Heat Dissipation 50 Energy Generation 12 Energy Capacity 265 Matter Stores 300 Matter Capacity 300 Sight Range 16 Terrain Scan Range 16 Terrain Scan Density 10 Evasion (%) 55 Targeting Accuracy 6 Item Schematics ----------------- None Robot Schematics ------------------ None Fabricated ------------ Nothing Alien Tech Used ----------------- None Achievements -------------- None Challenges ------------ None Game ------ Seed DiametricUltimateAnalyzer Manual? 0 Play Time 00:24:05 Cumulative 572.7 hours Start 2024.01.20 @ 16:33:08 End 2024.01.20 @ 17:26:22 Sessions 5 Manual Loads 0 Difficulty Rogue Special Mode None Game No. 89 Rogue 72 Adventurer 17 Explorer 0 Win Type - Total 2 Types 2/0/0/0/0/0/0/0/0 Lore% 54 Gallery% 66 Achievement% 55 Wizard Run 0 Options --------- ASCII 0 Keyboard 1 Movement Vi Keybinds 0 Fullscreen 1 Font 18/SmallcapsGlow Map View 76x50 Zoom Use 0% Tactical HUD 1 Map Filters NONE Filters NONE Steam 1 RUN: a77f7803-ea9b-46af-906d-2dd480dc905b